[Event "Titled Tuesday Blitz May 24 Late 2022"]
[White "Kohler, Aran"]
[Black "Bagrationi, Alexander"]
[WhiteFideId "1002856"]
[BlackFideId "14104954"]
[WhiteElo "2243"]
[BlackElo "2502"]
[Result "0-1"]
[Round "01"]
[TimeControl "180+1"]
[Date "2022.05.25"]
[WhiteClock "0:00:05"]
[BlackClock "0:00:30"]

1. d4 {[%clk 0:02:57]}  Nf6 {[%clk 0:02:58]} 2. Nf3 {[%clk 0:02:56]}  g6 {[%clk 0:02:58]} 3. c3 {[%clk 0:02:56]}  Bg7 {[%clk 0:02:58]} 4. Bg5 {[%clk 0:02:56]}  Ne4 {[%clk 0:02:57]} 5. Bh4 {[%clk 0:02:53]}  b6 {[%clk 0:02:57]} 6. Nbd2 {[%clk 0:02:51]}  Bb7 {[%clk 0:02:57]} 7. Nxe4 {[%clk 0:02:47]}  Bxe4 {[%clk 0:02:58]} 8. e3 {[%clk 0:02:48]}  O-O {[%clk 0:02:55]} 9. Nd2 {[%clk 0:02:45]}  Bb7 {[%clk 0:02:54]} 10. f3 {[%clk 0:02:46]}  c5 {[%clk 0:02:50]} 11. Bd3 {[%clk 0:02:43]}  cxd4 {[%clk 0:02:48]} 12. exd4 {[%clk 0:02:38]}  Qc7 {[%clk 0:02:43]} 13. Bg3 {[%clk 0:02:27]}  d6 {[%clk 0:02:40]} 14. O-O {[%clk 0:02:01]}  e5 {[%clk 0:02:39]} 15. dxe5 {[%clk 0:02:01]}  dxe5 {[%clk 0:02:39]} 16. Re1 {[%clk 0:01:56]}  Nc6 {[%clk 0:02:36]} 17. Qe2 {[%clk 0:01:49]}  Rad8 {[%clk 0:02:32]} 18. Be4 {[%clk 0:01:43]}  Rfe8 {[%clk 0:02:28]} 19. Rad1 {[%clk 0:01:34]}  f5 {[%clk 0:02:26]} 20. Qc4+ {[%clk 0:01:28]}  Kh8 {[%clk 0:02:26]} 21. Bb1 {[%clk 0:01:19]}  Qd7 {[%clk 0:02:03]} 22. Bc2 {[%clk 0:01:15]}  Na5 {[%clk 0:01:35]} 23. Qf1 {[%clk 0:01:14]}  Qc6 {[%clk 0:01:22]} 24. Nb3 {[%clk 0:01:07]}  Nc4 {[%clk 0:01:21]} 25. Rxd8 {[%clk 0:01:00]}  Rxd8 {[%clk 0:01:21]} 26. Kh1 {[%clk 0:00:52]}  Nxb2 {[%clk 0:01:12]} 27. Bxe5 {[%clk 0:00:47]}  Bxe5 {[%clk 0:01:12]} 28. Rxe5 {[%clk 0:00:47]}  Qxc3 {[%clk 0:01:12]} 29. Re2 {[%clk 0:00:44]}  Ba6 {[%clk 0:01:11]} 30. Qe1 {[%clk 0:00:38]}  Qxe1+ {[%clk 0:00:58]} 31. Rxe1 {[%clk 0:00:39]}  Rd7 {[%clk 0:00:57]} 32. h4 {[%clk 0:00:35]}  Kg7 {[%clk 0:00:57]} 33. h5 {[%clk 0:00:35]}  Kf6 {[%clk 0:00:57]} 34. h6 {[%clk 0:00:34]}  Kg5 {[%clk 0:00:53]} 35. Kh2 {[%clk 0:00:20]}  Kxh6 {[%clk 0:00:53]} 36. Kg3 {[%clk 0:00:20]}  Kg5 {[%clk 0:00:53]} 37. f4+ {[%clk 0:00:20]}  Kf6 {[%clk 0:00:53]} 38. Re8 {[%clk 0:00:18]}  Bc4 {[%clk 0:00:44]} 39. Nc1 {[%clk 0:00:15]}  Bf7 {[%clk 0:00:40]} 40. Rh8 {[%clk 0:00:13]}  Rc7 {[%clk 0:00:39]} 41. Bb3 {[%clk 0:00:10]}  Rxc1 {[%clk 0:00:38]} 42. Rxh7 {[%clk 0:00:09]}  Rc3+ {[%clk 0:00:34]} 43. Kh4 {[%clk 0:00:09]}  Rxb3 {[%clk 0:00:31]} 44. axb3 {[%clk 0:00:09]}  a5 {[%clk 0:00:32]} 45. g4 {[%clk 0:00:08]}  fxg4 {[%clk 0:00:32]} 46. Kxg4 {[%clk 0:00:08]}  b5 {[%clk 0:00:31]} 47. Rh8 {[%clk 0:00:05]}  Bxb3 {[%clk 0:00:31]} 48. Rb8 {[%clk 0:00:05]}  Bc4 {[%clk 0:00:31]} 49. Rb6+ {[%clk 0:00:05]}  Kf7 {[%clk 0:00:30]} 50. Kg5 {[%clk 0:00:06]}  Bd3 {[%clk 0:00:31]} 51. Rf6+ {[%clk 0:00:04]}  Ke7 {[%clk 0:00:30]} 52. Ra6 {[%clk 0:00:05]}  a4 {[%clk 0:00:30]} 53. Ra7+ {[%clk 0:00:05]}  Kd6 {[%clk 0:00:30]} 0-1


[Site "https://www.chess.com"]

[Event "Titled Tuesday Blitz May 24 Late 2022"]
[White "Koniahli, Malek."]
[Black "Sarkar, Justin"]
[WhiteFideId "7603495"]
[BlackFideId "2010011"]
[WhiteElo "2097"]
[BlackElo "2020"]
[Result "1/2-1/2"]
[Round "01"]
[TimeControl "180+1"]
[Date "2022.05.25"]
[WhiteClock "0:01:47"]
[BlackClock "0:00:07"]

1. c4 {[%clk 0:03:00]}  f5 {[%clk 0:02:49]} 2. Nc3 {[%clk 0:02:59]}  Nf6 {[%clk 0:02:47]} 3. g3 {[%clk 0:02:59]}  e6 {[%clk 0:02:43]} 4. Bg2 {[%clk 0:03:00]}  c6 {[%clk 0:02:38]} 5. d3 {[%clk 0:02:59]}  d5 {[%clk 0:02:36]} 6. cxd5 {[%clk 0:02:58]}  exd5 {[%clk 0:02:35]} 7. Nf3 {[%clk 0:02:59]}  Bd6 {[%clk 0:02:33]} 8. Bf4 {[%clk 0:02:58]}  O-O {[%clk 0:02:24]} 9. Rc1 {[%clk 0:02:55]}  Bxf4 {[%clk 0:02:17]} 10. gxf4 {[%clk 0:02:56]}  d4 {[%clk 0:02:16]} 11. Nb1 {[%clk 0:02:51]}  Qa5+ {[%clk 0:01:35]} 12. Kf1 {[%clk 0:02:49]}  Nd5 {[%clk 0:01:26]} 13. Nxd4 {[%clk 0:02:41]}  Nxf4 {[%clk 0:01:24]} 14. Bf3 {[%clk 0:02:40]}  Qxa2 {[%clk 0:01:15]} 15. Qd2 {[%clk 0:02:37]}  Ne6 {[%clk 0:01:02]} 16. Nc3 {[%clk 0:02:22]}  Qa5 {[%clk 0:00:58]} 17. Nxe6 {[%clk 0:02:20]}  Bxe6 {[%clk 0:00:58]} 18. Rg1 {[%clk 0:02:21]}  f4 {[%clk 0:00:49]} 19. Ne4 {[%clk 0:02:08]}  Qxd2 {[%clk 0:00:46]} 20. Nxd2 {[%clk 0:02:08]}  Nd7 {[%clk 0:00:46]} 21. b4 {[%clk 0:02:06]}  a5 {[%clk 0:00:44]} 22. bxa5 {[%clk 0:02:03]}  Rxa5 {[%clk 0:00:43]} 23. Rb1 {[%clk 0:02:04]}  Ra2 {[%clk 0:00:38]} 24. Ne4 {[%clk 0:02:02]}  b6 {[%clk 0:00:23]} 25. Ng5 {[%clk 0:01:59]}  Bd5 {[%clk 0:00:20]} 26. Bxd5+ {[%clk 0:01:45]}  cxd5 {[%clk 0:00:21]} 27. Nf3 {[%clk 0:01:46]}  h6 {[%clk 0:00:18]} 28. Nd4 {[%clk 0:01:45]}  Rf6 {[%clk 0:00:16]} 29. Kg2 {[%clk 0:01:45]}  Ra4 {[%clk 0:00:12]} 30. Nf3 {[%clk 0:01:44]}  Kh7 {[%clk 0:00:09]} 31. Rgc1 {[%clk 0:01:44]}  Nc5 {[%clk 0:00:06]} 32. Ra1 {[%clk 0:01:40]}  Rxa1 {[%clk 0:00:05]} 33. Rxa1 {[%clk 0:01:41]}  b5 {[%clk 0:00:04]} 34. Rb1 {[%clk 0:01:41]}  Rb6 {[%clk 0:00:04]} 35. Rc1 {[%clk 0:01:38]}  Na4 {[%clk 0:00:03]} 36. Rc7 {[%clk 0:01:38]}  b4 {[%clk 0:00:02]} 37. Ra7 {[%clk 0:01:37]}  Nc3 {[%clk 0:00:02]} 38. Nd4 {[%clk 0:01:38]}  b3 {[%clk 0:00:02]} 39. Nxb3 {[%clk 0:01:36]}  Rxb3 {[%clk 0:00:02]} 40. Rf7 {[%clk 0:01:37]}  Nxe2 {[%clk 0:00:01]} 41. Re7 {[%clk 0:01:37]}  Nd4 {[%clk 0:00:02]} 42. Rd7 {[%clk 0:01:38]}  Rxd3 {[%clk 0:00:02]} 43. Rxd5 {[%clk 0:01:37]}  f3+ {[%clk 0:00:02]} 44. Kh3 {[%clk 0:01:38]}  Rd2 {[%clk 0:00:02]} 45. Ra5 {[%clk 0:01:36]}  g5 {[%clk 0:00:02]} 46. Kg3 {[%clk 0:01:37]}  Kg6 {[%clk 0:00:02]} 47. Ra7 {[%clk 0:01:38]}  Kh5 {[%clk 0:00:02]} 48. Ra6 {[%clk 0:01:39]}  Nf5+ {[%clk 0:00:02]} 49. Kxf3 {[%clk 0:01:39]}  Rd3+ {[%clk 0:00:02]} 50. Ke4 {[%clk 0:01:40]}  Rh3 {[%clk 0:00:02]} 51. Kxf5 {[%clk 0:01:40]}  Rxh2 {[%clk 0:00:03]} 52. Ra2 {[%clk 0:01:40]}  Rg2 {[%clk 0:00:02]} 53. Ke4 {[%clk 0:01:40]}  Rg4+ {[%clk 0:00:02]} 54. Kf3 {[%clk 0:01:40]}  Kh4 {[%clk 0:00:02]} 55. Ra1 {[%clk 0:01:41]}  Rf4+ {[%clk 0:00:02]} 56. Kg2 {[%clk 0:01:41]}  Kg4 {[%clk 0:00:03]} 57. Rh1 {[%clk 0:01:42]}  Kf5 {[%clk 0:00:02]} 58. Re1 {[%clk 0:01:43]}  Rg4+ {[%clk 0:00:03]} 59. Kf3 {[%clk 0:01:43]}  Rf4+ {[%clk 0:00:03]} 60. Kg3 {[%clk 0:01:43]}  h5 {[%clk 0:00:03]} 61. Re8 {[%clk 0:01:43]}  h4+ {[%clk 0:00:03]} 62. Kg2 {[%clk 0:01:43]}  Rg4+ {[%clk 0:00:04]} 63. Kf1 {[%clk 0:01:43]}  Rf4 {[%clk 0:00:04]} 64. Rf8+ {[%clk 0:01:44]}  Kg4 {[%clk 0:00:04]} 65. Re8 {[%clk 0:01:45]}  Rb4 {[%clk 0:00:04]} 66. Re3 {[%clk 0:01:46]}  Rb1+ {[%clk 0:00:04]} 67. Kg2 {[%clk 0:01:47]}  Rb2 {[%clk 0:00:04]} 68. Re4+ {[%clk 0:01:47]}  Kh5 {[%clk 0:00:04]} 69. Ra4 {[%clk 0:01:48]}  g4 {[%clk 0:00:04]} 70. Ra5+ {[%clk 0:01:49]}  Kg6 {[%clk 0:00:04]} 71. Ra6+ {[%clk 0:01:49]}  Kg5 {[%clk 0:00:05]} 72. Ra7 {[%clk 0:01:50]}  Kf4 {[%clk 0:00:05]} 73. Ra4+ {[%clk 0:01:50]}  Kf5 {[%clk 0:00:05]} 74. Ra8 {[%clk 0:01:50]}  g3 {[%clk 0:00:05]} 75. Rf8+ {[%clk 0:01:50]}  Kg4 {[%clk 0:00:06]} 76. Rg8+ {[%clk 0:01:50]}  Kf4 {[%clk 0:00:06]} 77. Rf8+ {[%clk 0:01:50]}  Kg4 {[%clk 0:00:07]} 78. Rg8+ {[%clk 0:01:49]}  Kf4 {[%clk 0:00:07]} 79. Rf8+ {[%clk 0:01:47]}  Kg4 {[%clk 0:00:07]} 1/2-1/2


[Site "https://www.chess.com"]

[Event "Titled Tuesday Blitz May 24 Late 2022"]
[White "Kujawski, Adam"]
[Black "Gong, Patrick"]
[WhiteFideId "1100920"]
[BlackFideId "3222500"]
[WhiteElo "1982"]
[BlackElo "2103"]
[Result "1-0"]
[Round "01"]
[TimeControl "180+1"]
[Date "2022.05.25"]
[WhiteClock "0:00:39"]
[BlackClock "0:02:02"]

1. e4 {[%clk 0:02:58]}  c6 {[%clk 0:02:58]} 2. d4 {[%clk 0:02:53]}  d5 {[%clk 0:02:57]} 3. Nc3 {[%clk 0:02:52]}  dxe4 {[%clk 0:02:55]} 4. Nxe4 {[%clk 0:02:53]}  Nf6 {[%clk 0:02:54]} 5. Nxf6+ {[%clk 0:02:53]}  exf6 {[%clk 0:02:53]} 6. Bc4 {[%clk 0:02:52]}  Na6 {[%clk 0:02:51]} 7. Be3 {[%clk 0:02:27]}  Bd6 {[%clk 0:02:45]} 8. Qh5 {[%clk 0:02:26]}  O-O {[%clk 0:02:39]} 9. h4 {[%clk 0:02:15]}  Nb4 {[%clk 0:02:30]} 10. O-O-O {[%clk 0:02:12]}  b5 {[%clk 0:02:27]} 11. Bb3 {[%clk 0:01:57]}  a5 {[%clk 0:02:22]} 12. Nh3 {[%clk 0:01:56]}  a4 {[%clk 0:02:19]} 13. Ng5 {[%clk 0:01:55]}  fxg5 {[%clk 0:02:07]} 14. hxg5 {[%clk 0:01:54]}  Bf5 {[%clk 0:02:07]} 15. Rh4 {[%clk 0:00:42]}  Bg6 {[%clk 0:02:02]} 16. Qxg6 {[%clk 0:00:39]} 1-0


[Site "https://www.chess.com"]

[Event "Titled Tuesday Blitz May 24 Late 2022"]
[White "Lehtosaari, Mauri"]
[Black "Quesada Perez, Yuniesky"]
[WhiteFideId "501999"]
[BlackFideId "3504409"]
[WhiteElo "2503"]
[BlackElo "2622"]
[Result "0-1"]
[Round "01"]
[TimeControl "180+1"]
[Date "2022.05.24"]
[WhiteClock "0:00:23"]
[BlackClock "0:01:16"]

1. d4 {[%clk 0:02:53]}  d5 {[%clk 0:02:59]} 2. Nf3 {[%clk 0:02:52]}  Nf6 {[%clk 0:02:58]} 3. Bg5 {[%clk 0:02:44]}  Bf5 {[%clk 0:02:54]} 4. c3 {[%clk 0:02:32]}  e6 {[%clk 0:02:53]} 5. Qb3 {[%clk 0:02:31]}  Nbd7 {[%clk 0:02:50]} 6. Nbd2 {[%clk 0:02:29]}  c5 {[%clk 0:02:48]} 7. e3 {[%clk 0:02:28]}  c4 {[%clk 0:02:44]} 8. Qxb7 {[%clk 0:02:19]}  Rb8 {[%clk 0:02:44]} 9. Qxa7 {[%clk 0:02:18]}  Rxb2 {[%clk 0:02:44]} 10. Be2 {[%clk 0:02:17]}  Bd6 {[%clk 0:02:37]} 11. O-O {[%clk 0:02:16]}  O-O {[%clk 0:02:37]} 12. a4 {[%clk 0:01:53]}  Qc8 {[%clk 0:02:37]} 13. Bf4 {[%clk 0:01:42]}  Bxf4 {[%clk 0:02:27]} 14. exf4 {[%clk 0:01:43]}  Qc6 {[%clk 0:02:27]} 15. Ne5 {[%clk 0:01:08]}  Nxe5 {[%clk 0:02:27]} 16. dxe5 {[%clk 0:01:08]}  Rxd2 {[%clk 0:02:27]} 17. exf6 {[%clk 0:01:06]}  Rxe2 {[%clk 0:02:26]} 18. fxg7 {[%clk 0:01:06]}  Kxg7 {[%clk 0:02:16]} 19. a5 {[%clk 0:01:06]}  Ra8 {[%clk 0:01:47]} 20. Qd4+ {[%clk 0:01:05]}  Kg8 {[%clk 0:01:48]} 21. h3 {[%clk 0:01:03]}  Bd3 {[%clk 0:01:44]} 22. Rfd1 {[%clk 0:00:55]}  Qc7 {[%clk 0:01:44]} 23. a6 {[%clk 0:00:53]}  Qa7 {[%clk 0:01:43]} 24. Qxa7 {[%clk 0:00:40]}  Rxa7 {[%clk 0:01:43]} 25. Ra3 {[%clk 0:00:41]}  Rb2 {[%clk 0:01:41]} 26. Rda1 {[%clk 0:00:40]}  Rb3 {[%clk 0:01:40]} 27. f3 {[%clk 0:00:39]}  Kf8 {[%clk 0:01:25]} 28. Kf2 {[%clk 0:00:39]}  Rb2+ {[%clk 0:01:24]} 29. Kg3 {[%clk 0:00:39]}  Ke7 {[%clk 0:01:24]} 30. Ra5 {[%clk 0:00:38]}  Kd6 {[%clk 0:01:24]} 31. h4 {[%clk 0:00:32]}  h5 {[%clk 0:01:23]} 32. Kh3 {[%clk 0:00:32]}  Rb3 {[%clk 0:01:19]} 33. R5a3 {[%clk 0:00:29]}  Kc6 {[%clk 0:01:18]} 34. g4 {[%clk 0:00:28]}  Kb6 {[%clk 0:01:15]} 35. gxh5 {[%clk 0:00:23]}  Bf5+ {[%clk 0:01:14]} 36. Kg3 {[%clk 0:00:23]}  Rxa3 {[%clk 0:01:15]} 37. Rxa3 {[%clk 0:00:22]}  Rxa6 {[%clk 0:01:15]} 38. Rxa6+ {[%clk 0:00:23]}  Kxa6 {[%clk 0:01:16]} 0-1


[Site "https://www.chess.com"]

[Event "Titled Tuesday Blitz May 24 Late 2022"]
[White "Mahdavi, Reza"]
[Black "Blackman, Justin"]
[WhiteFideId "12595926"]
[BlackFideId "11100516"]
[WhiteElo "2253"]
[BlackElo "2112"]
[Result "1-0"]
[Round "01"]
[TimeControl "180+1"]
[Date "2022.05.25"]
[WhiteClock "0:00:33"]
[BlackClock "0:00:02"]

1. e4 {[%clk 0:03:00]}  e5 {[%clk 0:02:59]} 2. Nf3 {[%clk 0:03:01]}  Nc6 {[%clk 0:02:59]} 3. Nc3 {[%clk 0:03:01]}  Bb4 {[%clk 0:02:57]} 4. Nd5 {[%clk 0:03:01]}  Ba5 {[%clk 0:02:57]} 5. c3 {[%clk 0:03:01]}  d6 {[%clk 0:02:56]} 6. b4 {[%clk 0:03:00]}  Bb6 {[%clk 0:02:56]} 7. d4 {[%clk 0:03:01]}  Bg4 {[%clk 0:02:47]} 8. Nxb6 {[%clk 0:02:55]}  axb6 {[%clk 0:02:47]} 9. Bb5 {[%clk 0:02:53]}  Bd7 {[%clk 0:01:37]} 10. O-O {[%clk 0:02:52]}  Nge7 {[%clk 0:01:36]} 11. Bg5 {[%clk 0:02:52]}  f6 {[%clk 0:01:34]} 12. Be3 {[%clk 0:02:48]}  O-O {[%clk 0:01:31]} 13. Qc2 {[%clk 0:02:44]}  Kh8 {[%clk 0:01:30]} 14. Be2 {[%clk 0:02:31]}  Ng6 {[%clk 0:01:11]} 15. Rad1 {[%clk 0:02:27]}  Qe8 {[%clk 0:01:06]} 16. Bc4 {[%clk 0:02:17]}  f5 {[%clk 0:01:03]} 17. dxe5 {[%clk 0:02:04]}  f4 {[%clk 0:00:57]} 18. Bc1 {[%clk 0:01:58]}  Ncxe5 {[%clk 0:00:56]} 19. Be2 {[%clk 0:01:48]}  Nxf3+ {[%clk 0:00:56]} 20. Bxf3 {[%clk 0:01:49]}  Ne5 {[%clk 0:00:55]} 21. Qe2 {[%clk 0:01:50]}  Qg6 {[%clk 0:00:51]} 22. Rd5 {[%clk 0:01:39]}  Be6 {[%clk 0:00:44]} 23. Rxe5 {[%clk 0:01:28]}  dxe5 {[%clk 0:00:45]} 24. c4 {[%clk 0:01:28]}  b5 {[%clk 0:00:44]} 25. cxb5 {[%clk 0:01:26]}  Rxa2 {[%clk 0:00:44]} 26. Qd3 {[%clk 0:01:25]}  Qf7 {[%clk 0:00:42]} 27. Qc3 {[%clk 0:01:25]}  Bc4 {[%clk 0:00:33]} 28. Re1 {[%clk 0:01:25]}  Re8 {[%clk 0:00:33]} 29. g3 {[%clk 0:01:12]}  fxg3 {[%clk 0:00:31]} 30. hxg3 {[%clk 0:01:13]}  Bxb5 {[%clk 0:00:24]} 31. Kg2 {[%clk 0:01:10]}  h6 {[%clk 0:00:20]} 32. Be3 {[%clk 0:01:07]}  c6 {[%clk 0:00:20]} 33. Rh1 {[%clk 0:01:07]}  Rf8 {[%clk 0:00:19]} 34. Bc5 {[%clk 0:01:07]}  Rd8 {[%clk 0:00:18]} 35. Qxe5 {[%clk 0:01:06]}  Qg6 {[%clk 0:00:13]} 36. Qe7 {[%clk 0:00:59]}  Raa8 {[%clk 0:00:13]} 37. Be3 {[%clk 0:00:55]}  Rf8 {[%clk 0:00:10]} 38. Qxb7 {[%clk 0:00:48]}  Rae8 {[%clk 0:00:08]} 39. Qd7 {[%clk 0:00:43]}  Rd8 {[%clk 0:00:07]} 40. Qg4 {[%clk 0:00:41]}  Qf6 {[%clk 0:00:05]} 41. Bf4 {[%clk 0:00:39]}  Bd3 {[%clk 0:00:04]} 42. Qh4 {[%clk 0:00:34]}  Qxh4 {[%clk 0:00:02]} 43. Rxh4 {[%clk 0:00:35]}  Rde8 {[%clk 0:00:03]} 44. Bd6 {[%clk 0:00:34]}  Rf6 {[%clk 0:00:03]} 45. e5 {[%clk 0:00:34]}  g5 {[%clk 0:00:02]} 46. exf6 {[%clk 0:00:33]}  gxh4 {[%clk 0:00:02]} 47. f7 {[%clk 0:00:33]} 1-0


[Site "https://www.chess.com"]

[Event "Titled Tuesday Blitz May 24 Late 2022"]
[White "Makarian, Rudik"]
[Black "Moral Garcia, Serafin"]
[WhiteFideId "44105681"]
[BlackFideId "2201925"]
[WhiteElo "2419"]
[BlackElo "2228"]
[Result "1-0"]
[Round "01"]
[TimeControl "180+1"]
[Date "2022.05.24"]
[WhiteClock "0:02:11"]
[BlackClock "0:02:04"]

1. e4 {[%clk 0:03:00]}  e5 {[%clk 0:02:58]} 2. Nc3 {[%clk 0:03:00]}  Nf6 {[%clk 0:02:57]} 3. Nf3 {[%clk 0:02:57]}  Nc6 {[%clk 0:02:56]} 4. h3 {[%clk 0:02:56]}  g6 {[%clk 0:02:54]} 5. Bc4 {[%clk 0:02:52]}  Bg7 {[%clk 0:02:53]} 6. d3 {[%clk 0:02:52]}  O-O {[%clk 0:02:53]} 7. a4 {[%clk 0:02:49]}  d6 {[%clk 0:02:52]} 8. O-O {[%clk 0:02:46]}  h6 {[%clk 0:02:51]} 9. a5 {[%clk 0:02:45]}  a6 {[%clk 0:02:50]} 10. Nh2 {[%clk 0:02:27]}  Be6 {[%clk 0:02:43]} 11. b3 {[%clk 0:02:22]}  d5 {[%clk 0:02:38]} 12. exd5 {[%clk 0:02:20]}  Nxd5 {[%clk 0:02:38]} 13. Nxd5 {[%clk 0:02:19]}  Bxd5 {[%clk 0:02:38]} 14. Bb2 {[%clk 0:02:19]}  Qd6 {[%clk 0:02:30]} 15. Ng4 {[%clk 0:02:16]}  Rad8 {[%clk 0:02:25]} 16. Ba3 {[%clk 0:02:14]}  Qe6 {[%clk 0:02:12]} 17. Bxf8 {[%clk 0:02:13]}  Bxf8 {[%clk 0:02:12]} 18. Bxd5 {[%clk 0:02:11]}  Rxd5 {[%clk 0:02:10]} 19. Qf3 {[%clk 0:02:11]}  f5 {[%clk 0:02:04]} 20. Qxd5 {[%clk 0:02:11]} 1-0


[Site "https://www.chess.com"]

[Event "Titled Tuesday Blitz May 24 Late 2022"]
[White "Maltsevskaya, Aleksandra"]
[Black "Lopez Perdomo, Juan David"]
[WhiteFideId "24174041"]
[BlackFideId "4405137"]
[WhiteElo "2235"]
[BlackElo "1997"]
[Result "1-0"]
[Round "01"]
[TimeControl "180+1"]
[Date "2022.05.25"]
[WhiteClock "0:02:37"]
[BlackClock "0:01:15"]

1. e4 {[%clk 0:02:52]}  e6 {[%clk 0:02:59]} 2. d4 {[%clk 0:02:48]}  d5 {[%clk 0:02:59]} 3. Nd2 {[%clk 0:02:49]}  dxe4 {[%clk 0:02:58]} 4. Nxe4 {[%clk 0:02:49]}  Bd7 {[%clk 0:02:59]} 5. Nf3 {[%clk 0:02:45]}  Bc6 {[%clk 0:03:00]} 6. Bd3 {[%clk 0:02:45]}  Be7 {[%clk 0:03:01]} 7. Ne5 {[%clk 0:02:44]}  Nd7 {[%clk 0:03:01]} 8. Nxc6 {[%clk 0:02:43]}  bxc6 {[%clk 0:03:02]} 9. O-O {[%clk 0:02:44]}  Ngf6 {[%clk 0:03:00]} 10. Qf3 {[%clk 0:02:45]}  O-O {[%clk 0:02:34]} 11. Rd1 {[%clk 0:02:42]}  Rb8 {[%clk 0:02:19]} 12. Nxf6+ {[%clk 0:02:38]}  Bxf6 {[%clk 0:02:15]} 13. Qxc6 {[%clk 0:02:37]}  Bxd4 {[%clk 0:02:13]} 14. Bxh7+ {[%clk 0:02:36]}  Kxh7 {[%clk 0:02:07]} 15. Rxd4 {[%clk 0:02:37]}  Ne5 {[%clk 0:01:16]} 16. Qe4+ {[%clk 0:02:37]}  f5 {[%clk 0:01:15]} 17. Qxe5 {[%clk 0:02:37]}  Qxd4 {[%clk 0:01:14]} 18. Qxd4 {[%clk 0:02:37]}  Rbd8 {[%clk 0:01:15]} 19. Qh4+ {[%clk 0:02:37]} 1-0


[Site "https://www.chess.com"]

[Event "Titled Tuesday Blitz May 24 Late 2022"]
[White "Martin Carmona, Gaston Manuel"]
[Black "Drygalov, Andrey"]
[WhiteFideId "22284567"]
[BlackFideId "24171735"]
[WhiteElo "2162"]
[BlackElo "2540"]
[Result "0-1"]
[Round "01"]
[TimeControl "180+1"]
[Date "2022.05.24"]
[WhiteClock "0:00:03"]
[BlackClock "0:00:15"]

1. d4 {[%clk 0:02:59]}  Nf6 {[%clk 0:02:57]} 2. c4 {[%clk 0:02:59]}  e6 {[%clk 0:02:57]} 3. Nc3 {[%clk 0:02:58]}  Bb4 {[%clk 0:02:57]} 4. Qc2 {[%clk 0:02:50]}  d5 {[%clk 0:02:55]} 5. cxd5 {[%clk 0:02:51]}  exd5 {[%clk 0:02:55]} 6. Bg5 {[%clk 0:02:51]}  h6 {[%clk 0:02:53]} 7. Bh4 {[%clk 0:02:52]}  Nc6 {[%clk 0:02:51]} 8. e3 {[%clk 0:02:51]}  g5 {[%clk 0:02:51]} 9. Bg3 {[%clk 0:02:51]}  h5 {[%clk 0:02:51]} 10. h3 {[%clk 0:02:48]}  Ne4 {[%clk 0:02:30]} 11. Bh2 {[%clk 0:02:46]}  Bf5 {[%clk 0:02:13]} 12. Bd3 {[%clk 0:02:46]}  Qe7 {[%clk 0:02:11]} 13. Ne2 {[%clk 0:02:45]}  O-O-O {[%clk 0:02:06]} 14. a3 {[%clk 0:02:39]}  Bxc3+ {[%clk 0:02:03]} 15. bxc3 {[%clk 0:02:38]}  Bg6 {[%clk 0:01:53]} 16. O-O {[%clk 0:01:52]}  g4 {[%clk 0:01:50]} 17. Nf4 {[%clk 0:01:48]}  gxh3 {[%clk 0:01:50]} 18. Nxh3 {[%clk 0:01:49]}  h4 {[%clk 0:01:38]} 19. c4 {[%clk 0:01:47]}  dxc4 {[%clk 0:01:31]} 20. Qxc4 {[%clk 0:01:48]}  Nd6 {[%clk 0:01:31]} 21. Qc2 {[%clk 0:01:44]}  Bxd3 {[%clk 0:01:30]} 22. Qxd3 {[%clk 0:01:45]}  Qe4 {[%clk 0:01:28]} 23. Qxe4 {[%clk 0:01:38]}  Nxe4 {[%clk 0:01:28]} 24. Rfc1 {[%clk 0:01:37]}  Rhg8 {[%clk 0:01:26]} 25. Rc2 {[%clk 0:01:30]}  Rd7 {[%clk 0:01:13]} 26. Rac1 {[%clk 0:01:29]}  a6 {[%clk 0:01:00]} 27. Bf4 {[%clk 0:01:25]}  Kb8 {[%clk 0:00:59]} 28. Rb1 {[%clk 0:01:22]}  Ka7 {[%clk 0:00:58]} 29. Rcb2 {[%clk 0:01:19]}  Na5 {[%clk 0:00:55]} 30. f3 {[%clk 0:01:15]}  Nd6 {[%clk 0:00:52]} 31. a4 {[%clk 0:01:05]}  Ndc4 {[%clk 0:00:49]} 32. Rb4 {[%clk 0:01:05]}  Re8 {[%clk 0:00:46]} 33. Kf2 {[%clk 0:01:03]}  c6 {[%clk 0:00:43]} 34. Ng5 {[%clk 0:01:02]}  f5 {[%clk 0:00:39]} 35. Rh1 {[%clk 0:00:56]}  c5 {[%clk 0:00:35]} 36. dxc5 {[%clk 0:00:44]}  Rd2+ {[%clk 0:00:35]} 37. Kg1 {[%clk 0:00:45]}  Nxe3 {[%clk 0:00:35]} 38. Bxe3 {[%clk 0:00:34]}  Rxe3 {[%clk 0:00:36]} 39. Rhxh4 {[%clk 0:00:18]}  Ree2 {[%clk 0:00:32]} 40. Nf7 {[%clk 0:00:11]}  Rxg2+ {[%clk 0:00:31]} 41. Kh1 {[%clk 0:00:12]}  Rge2 {[%clk 0:00:29]} 42. Rb1 {[%clk 0:00:12]}  Nb3 {[%clk 0:00:22]} 43. Rh7 {[%clk 0:00:11]}  Nxc5 {[%clk 0:00:22]} 44. Ng5 {[%clk 0:00:09]}  Rd3 {[%clk 0:00:16]} 45. a5 {[%clk 0:00:08]}  Red2 {[%clk 0:00:16]} 46. Rc7 {[%clk 0:00:06]}  Rd1+ {[%clk 0:00:15]} 47. Rxd1 {[%clk 0:00:07]}  Rxd1+ {[%clk 0:00:16]} 48. Kg2 {[%clk 0:00:08]}  Rd5 {[%clk 0:00:16]} 49. f4 {[%clk 0:00:05]}  Kb8 {[%clk 0:00:15]} 50. Rf7 {[%clk 0:00:05]}  Nd3 {[%clk 0:00:16]} 51. Kg3 {[%clk 0:00:05]}  Rxa5 {[%clk 0:00:16]} 52. Ne6 {[%clk 0:00:06]}  Rd5 {[%clk 0:00:15]} 53. Ng7 {[%clk 0:00:05]}  a5 {[%clk 0:00:15]} 54. Nxf5 {[%clk 0:00:05]}  a4 {[%clk 0:00:15]} 55. Ne3 {[%clk 0:00:05]}  Rc5 {[%clk 0:00:15]} 56. Rh7 {[%clk 0:00:03]}  a3 {[%clk 0:00:15]} 57. Rh1 {[%clk 0:00:03]}  a2 {[%clk 0:00:15]} 58. Ra1 {[%clk 0:00:04]}  Nb4 {[%clk 0:00:15]} 59. Kf3 {[%clk 0:00:03]}  Rc3 {[%clk 0:00:15]} 0-1


[Site "https://www.chess.com"]